bitfinex-derivatives/quotes_ETHF0:USTF0_20250125
["timestamp","ask_amount","ask_price","bid_price","bid_amount"]
[1737798279294,0.00455781,3291.4,3291.3,5.62518571]
[1737798279991,0.00455781,3291.4,3291.3,45.82888576]
[1737798280194,0.00455781,3291.4,3291.3,46.42527653]
[1737798280393,0.00455781,3291.4,3291.3,46.42520403]
[1737798280695,0.00455781,3291.4,3291.3,46.42519025]
[1737798281897,0.00455781,3291.4,3291.3,46.91199025]
[1737798284603,0.00455781,3291.4,3291.3,45.943]
[1737798285002,0.49073781,3291.4,3291.3,44.97]
[1737798285306,1.48413781,3291.4,3291.3,4.17]
[1737798285608,1.48413781,3291.4,3291.3,44.97]
[1737798286307,1.48413781,3291.4,3291.3,44.4858]
[1737798286505,1.86476329,3291.4,3291.3,44.0078]
[1737798288206,1.86476329,3291.4,3291.3,44.5279]
[1737798288507,1.48413781,3291.4,3291.3,45.0141]
[1737798291705,1.48413781,3291.4,3291.3,45.99608026]
[1737798292099,1.48413781,3291.4,3291.3,45.99608351]
[1737798293808,0.50745781,3291.4,3291.3,45.99608351]
[1737798294703,0.00455781,3291.4,3291.3,45.99608351]
[1737798296006,0.00455781,3291.4,3291.3,42.78828351]
[1737798298307,0.00455781,3291.4,3291.3,42.7889758]
[1737798299807,0.00455781,3291.4,3291.3,42.18425223]
[1737798302510,0.00455781,3291.4,3291.3,42.18435676]
[1737798304510,0.00455781,3291.4,3291.3,42.18441644]
[1737798306511,0.49073781,3291.4,3291.3,41.17811644]
[1737798306707,0.87205651,3291.4,3291.3,41.78338393]
[1737798306908,0.49073781,3291.4,3291.3,41.78338394]
[1737798307509,0.49073781,3291.4,3291.3,0.98338394]
[1737798308511,0.00455781,3291.4,3291.2,45.11640126]
[1737798308715,0.49073781,3291.4,3291.3,0.98355879]
[1737798310405,4.03146177,3291.4,3290.8,1.10860126]
[1737798310605,1.10860126,3291.2,3290.9,0.60515422]
[1737798310816,0.48629,3290.7,3290.6,1.10860126]
[1737798311011,0.48629,3290.7,3290.6,42.50653354]
[1737798312412,0.4777,3291.0,3290.6,42.50653354]
[1737798312616,0.48626,3290.9,3290.8,1.10860126]
[1737798314417,0.48626,3290.9,3290.8,1.62530126]
[1737798314811,0.48626,3290.9,3290.8,2.70865327]
[1737798316711,0.48626,3290.9,3290.8,2.70851199]
[1737798317118,0.48626,3290.9,3290.8,2.22224199]
[1737798317510,0.48626,3290.9,3290.8,1.10860126]
[1737798317713,0.48626,3290.9,3290.8,1.7054866]
[1737798319020,0.48626,3290.9,3290.8,1.70542877]
[1737798319822,0.48626,3290.9,3290.8,1.59487126]
[1737798320119,0.48626,3290.9,3290.8,1.10860126]
[1737798320622,0.48626,3290.9,3290.8,1.70535169]
[1737798320817,0.48626,3290.9,3290.8,1.10860126]
[1737798321822,0.48626,3290.9,3290.8,1.59487126]
[1737798322609,0.48626,3290.9,3290.8,1.10860126]
[1737798323823,0.48626,3290.9,3290.8,1.59487126]
[1737798325021,0.48626,3290.9,3290.8,1.10860126]
[1737798325221,0.98556,3290.9,3290.8,1.59487126]
[1737798327628,0.98556,3290.9,3290.8,1.10860126]
[1737798327828,0.98556,3290.9,3290.8,1.59487126]
[1737798328831,0.4993,3290.9,3290.8,1.59487126]
[1737798329032,3.7321,3291.1,3290.8,1.10860126]
[1737798329223,3.7321,3291.1,3291.0,1.59484126]
[1737798329420,0.5243,3291.1,3291.0,1.96779889]
[1737798329728,0.5243,3291.1,3291.0,3.08030523]
[1737798329929,0.5243,3291.1,3291.0,2.48359889]
[1737798330232,0.00455781,3291.4,3291.3,0.4862]
[1737798330433,0.00455781,3291.4,3291.3,1.96775889]
[1737798332033,0.00455781,3291.4,3291.3,1.96782083]
[1737798332624,0.00455781,3291.4,3291.3,2.56472449]
[1737798333130,3.2078,3291.8,3291.7,0.48614]
[1737798333331,3.2078,3291.8,3291.7,2.56466449]
[1737798333527,3.2078,3291.8,3291.7,43.36466449]
[1737798335228,4.80252126,3291.8,3291.7,0.37301957]
[1737798335527,4.80252126,3291.8,3291.4,0.49073781]
[1737798335528,0.48617,3291.5,3291.4,0.49073781]
[1737798335724,0.48617,3291.5,3291.4,0.86359989]
[1737798336321,0.48617,3291.5,3291.4,1.36019989]
[1737798337332,0.48617,3291.5,3291.4,0.98733781]
[1737798338333,0.48617,3291.5,3291.4,1.36485945]
[1737798339125,0.48617,3291.5,3291.4,0.00455781]
[1737798340433,4.44074656,3291.5,3291.4,0.00455781]
[1737798346646,0.48617,3291.5,3291.4,0.49073781]
[1737798347138,0.48617,3291.5,3291.4,41.29073781]
[1737798347738,1.43016,3291.6,3291.5,0.48617]
[1737798348138,1.43016,3291.6,3291.5,0.96857]
[1737798348344,1.43016,3291.6,3291.5,0.4824]
[1737798348544,1.43016,3291.6,3291.5,1.34615268]
[1737798349748,0.48615,3291.7,3291.6,0.48614]
[1737798350047,4.1518,3291.8,3291.7,0.48614]
[1737798350048,4.63793,3291.8,3291.7,0.48614]
[1737798351046,0.48613,3291.8,3291.7,0.48614]
[1737798352448,0.48613,3291.8,3291.7,0.86372204]
[1737798355661,0.48613,3291.8,3291.7,0.37758204]
[1737798359364,0.48613,3291.8,3291.7,1.46848832]
[1737798359561,0.48613,3291.8,3291.7,0.48614]
[1737798360766,0.38080729,3291.9,3291.8,0.48612]
[1737798360957,0.38080729,3292.0,3291.9,0.48611]
[1737798361157,0.38080729,3292.0,3291.9,1.59430271]
[1737798361361,0.48609,3292.0,3291.9,2.08290271]
[1737798361557,0.48609,3292.0,3291.9,5.29070271]
[1737798362659,0.99794781,3292.1,3292.0,0.48609]
[1737798362966,0.51185781,3292.1,3291.9,4.80459271]
[1737798363368,0.00455781,3292.1,3292.0,0.48609]
[1737798364364,0.49063781,3292.1,3292.0,0.48609]
[1737798365671,0.48609,3292.0,3291.9,3.6964]
[1737798365866,0.98479,3292.0,3291.9,3.6964]
[1737798366570,1.36543524,3292.0,3291.9,3.6964]
[1737798367668,1.36543524,3292.0,3291.9,4.07410326]
[1737798368068,0.98479,3292.0,3291.9,4.07410326]
[1737798368663,0.98479,3292.0,3291.9,4.07408922]
[1737798370872,0.98479,3292.0,3291.9,4.07409933]
[1737798371072,4.87870814,3292.0,3291.9,3.2078]
[1737798372072,7.21923757,3292.0,3291.9,3.2078]
[1737798372274,7.26775195,3292.0,3291.9,3.2078]
[1737798372477,7.64841397,3292.0,3291.9,3.2078]
[1737798373173,5.25937016,3292.0,3291.9,3.2078]
[1737798373675,4.87870814,3292.0,3291.9,3.2078]
[1737798375274,5.25946671,3292.0,3291.9,3.2078]
[1737798378574,5.3079763,3292.0,3291.9,3.2078]
[1737798378774,7.64850573,3292.0,3291.9,3.2078]
[1737798379475,7.59999614,3292.0,3291.9,3.2078]
[1737798379675,7.64849926,3292.0,3291.9,3.2078]
[1737798381277,7.59999614,3292.0,3291.9,3.2078]
[1737798383477,7.64848751,3292.0,3291.9,3.2078]
[1737798383671,7.11390614,3292.0,3291.5,3.2078]
[1737798383876,0.48617,3291.6,3291.5,3.2078]
[1737798384076,0.48615,3291.7,3291.6,0.48614]
[1737798384275,0.48615,3291.7,3291.6,0.38003254]
[1737798384476,0.48615,3291.7,3291.6,0.98810143]
[1737798386271,0.48614,3291.7,3291.6,0.98809225]
[1737798387076,3.92296587,3291.8,3291.6,0.98809498]
[1737798387277,4.40908587,3291.8,3291.7,0.38003653]
[1737798387677,4.92698587,3291.8,3291.7,0.38003653]
[1737798389081,4.44086587,3291.8,3291.7,0.380048]
[1737798389383,4.92698587,3291.8,3291.7,0.380048]
[1737798389682,6.03545856,3291.8,3291.7,0.380048]
[1737798390076,0.48616,3291.6,3291.4,0.96733781]
[1737798390572,0.38095392,3291.7,3291.4,0.96733781]
[1737798390884,0.48617,3291.5,3291.4,0.48115781]
[1737798391478,0.86712392,3291.5,3291.4,0.48115781]
[1737798397089,0.86712392,3291.5,3291.4,1.45232365]
[1737798397484,0.48617,3291.5,3291.4,1.45232365]
[1737798397885,4.36232807,3291.5,3291.4,1.45232365]
[1737798398193,4.36232807,3291.5,3291.4,0.85468313]
[1737798398376,4.36232807,3291.5,3291.4,0.37808313]
[1737798399487,4.36232807,3291.5,3291.4,0.37812589]
[1737798399689,4.36232807,3291.5,3291.4,0.37807353]
[1737798399891,4.36232807,3291.5,3291.4,0.37807533]
[1737798400094,4.36232807,3291.5,3291.4,0.00455781]
[1737798400889,4.36232807,3291.5,3291.4,0.378056]
[1737798401085,4.36232807,3291.5,3291.4,0.00455781]
[1737798402092,7.57012807,3291.5,3291.4,0.00455781]
[1737798404389,7.61857676,3291.5,3291.4,0.00455781]
[1737798404590,7.99962322,3291.5,3291.4,0.00455781]
[1737798406990,7.9996193,3291.5,3291.4,0.00455781]
[1737798407992,7.99961912,3291.5,3291.4,0.00455781]
[1737798409305,0.48626,3290.9,3290.8,0.4768]
[1737798409605,1.59473269,3290.9,3290.8,0.84528465]
[1737798412104,1.59473269,3290.9,3290.8,0.4768]
[1737798412805,5.57598141,3290.9,3290.8,0.4768]
[1737798418801,4.46750872,3290.9,3290.8,0.4768]
[1737798420701,4.46750872,3290.9,3290.8,0.85035247]
[1737798421196,4.46750872,3290.9,3290.8,0.4768]
[1737798421805,4.46750872,3290.9,3290.8,1.95884748]
[1737798422118,0.48626,3290.9,3290.8,1.95884748]
[1737798422610,0.48626,3290.9,3290.8,2.48134748]
[1737798422804,0.944,3291.0,3290.8,2.48134748]
[1737798423003,3.2078,3291.1,3290.9,0.37357479]
[1737798423206,0.48624,3291.1,3291.0,1.96828748]
[1737798423404,1.43022,3291.2,3291.0,1.96828748]
[1737798423602,1.43022,3291.2,3291.1,0.88277479]
[1737798424309,0.48622,3291.2,3291.1,0.88277479]
[1737798426113,0.48622,3291.2,3291.1,0.88294806]
[1737798428114,0.48622,3291.2,3291.1,0.88307572]
[1737798430210,0.48622,3291.2,3291.1,0.88310549]
[1737798430418,0.48622,3291.2,3291.1,1.48134743]
[1737798430812,0.48622,3291.2,3291.1,0.88310549]
[1737798432308,0.48622,3291.2,3291.1,0.88311396]
[1737798432613,0.96222,3291.2,3291.1,0.88311396]
[1737798434209,0.96222,3291.2,3291.1,0.37391396]
[1737798434407,0.48626,3290.9,3290.8,2.07797269]
[1737798434607,0.48626,3290.9,3290.8,0.9695]
[1737798434811,1.59473269,3290.9,3290.8,0.4768]
[1737798435312,0.48627,3290.8,3290.7,3.2078]
[1737798436118,0.48637,3290.1,3290.0,4.31627269]
[1737798436311,0.48637,3290.1,3290.0,5.28852334]
[1737798437718,0.48637,3290.1,3290.0,4.69021525]
[1737798439923,0.48637,3290.1,3290.0,1.48241525]
[1737798440420,0.48637,3290.1,3290.0,1.10847269]
[1737798442624,0.48637,3290.1,3290.0,1.48197562]
[1737798444627,0.48637,3290.1,3290.0,1.48186268]
[1737798445627,0.48637,3290.1,3290.0,0.37338999]
[1737798446423,0.4864,3289.9,3289.8,2.13807269]
[1737798446824,0.4864,3289.9,3289.8,2.5113626]
[1737798447126,0.4864,3289.9,3289.8,2.51136273]
[1737798447515,1.59487269,3289.9,3289.8,0.88246604]
[1737798447720,5.58043129,3289.9,3289.8,0.37327474]
[1737798447919,5.58043129,3289.9,3289.6,3.2078]
[1737798447920,0.48643,3289.7,3289.6,3.2078]
[1737798448129,1.59490269,3289.7,3289.6,3.58102247]
[1737798448432,0.48646,3289.5,3289.4,1.60767269]
[1737798448727,0.48646,3289.5,3289.4,1.98077853]
[1737798448926,0.48646,3289.5,3289.4,1.60767269]
[1737798450024,0.48646,3289.5,3289.4,0.4992]
[1737798451721,5.4270161,3289.5,3289.4,0.4992]
[1737798454822,6.53548879,3289.5,3289.4,0.4992]
[1737798456333,6.04902879,3289.5,3289.2,0.4766]
[1737798456634,0.48651,3289.2,3289.1,0.4854]
[1737798457237,0.48651,3289.2,3289.1,0.85797128]
[1737798457435,0.48651,3289.2,3289.1,0.4854]
[1737798459533,0.48651,3289.2,3289.1,0.85806066]
[1737798459839,0.48651,3289.2,3289.1,0.4854]
[1737798463746,0.48651,3289.2,3289.1,0.85845926]
[1737798464253,0.48651,3289.2,3289.1,0.85859186]
[1737798464946,0.48651,3289.2,3289.1,0.4854]
[1737798465954,0.48651,3289.2,3289.1,0.86289471]
[1737798468058,0.48651,3289.2,3289.1,0.86299607]
[1737798472162,0.48651,3289.2,3289.1,1.47150526]
[1737798474163,0.48651,3289.2,3289.1,0.4854]
[1737798474462,0.48651,3289.2,3289.1,1.4742268]
[1737798477366,0.48651,3289.2,3289.1,1.47422411]
[1737798478064,0.48651,3289.2,3289.1,1.47424762]
[1737798479571,0.48651,3289.2,3289.1,1.96076762]
[1737798479770,0.48651,3289.2,3289.1,1.47424762]
[1737798479969,0.48651,3289.2,3289.1,1.4741951]
[1737798480172,0.4865,3289.3,3289.1,1.9607051]
[1737798480469,0.4865,3289.3,3289.2,0.9887951]
[1737798482069,5.51548523,3289.3,3289.2,0.38030581]
[1737798482367,5.89747101,3289.3,3289.2,0.38030581]
[1737798483972,5.41097101,3289.3,3289.2,0.38032861]
[1737798484171,5.89746101,3289.3,3289.2,0.38032861]
[1737798486074,5.89746101,3289.3,3289.2,0.38033316]
[1737798490277,5.89746101,3289.3,3289.2,0.38034062]
[1737798493168,5.89746101,3289.3,3289.2,0.9888766]
[1737798493374,5.89746101,3289.3,3289.2,0.38034062]
[1737798496483,5.51547523,3289.3,3289.2,0.38034062]
[1737798496984,5.89748396,3289.3,3289.2,0.38034062]
[1737798498178,0.48657,3288.8,3288.7,3.2078]
[1737798498383,0.48657,3288.8,3288.7,4.19675163]
[1737798498678,1.59504269,3288.8,3288.7,4.19675163]
[1737798500481,1.59504269,3288.8,3288.7,4.19676861]
[1737798502083,1.59504269,3288.8,3288.7,0.98896861]
[1737798503389,0.48657,3288.8,3288.7,0.98896861]
[1737798504588,0.48655,3288.9,3288.7,0.98897263]
[1737798504888,0.48655,3288.9,3288.8,0.38037409]
[1737798505291,4.51496875,3288.9,3288.8,0.38037409]
[1737798506691,4.51496875,3288.9,3288.8,0.38037389]
[1737798507693,4.51496875,3288.9,3288.8,0.38037388]
[1737798508786,4.51496875,3288.9,3288.8,0.38037414]
[1737798509889,4.51496875,3288.9,3288.8,0.98897547]
[1737798510890,4.51496875,3288.9,3288.8,0.98897163]
[1737798512998,4.02841875,3288.9,3288.8,0.98895924]
[1737798513195,4.51496875,3288.9,3288.8,0.98895924]
[1737798514498,4.63831,3289.2,3289.1,0.48652]
[1737798514695,4.63831,3289.2,3289.1,1.47547924]
[1737798514893,4.63831,3289.2,3289.1,1.47535001]
[1737798515194,4.63831,3289.2,3289.1,0.98883001]
[1737798515586,4.63831,3289.2,3289.1,1.46703001]
[1737798516998,4.63831,3289.2,3289.1,1.46703456]
[1737798517687,5.74678269,3289.2,3289.1,1.46703456]
[1737798517891,5.74678269,3289.2,3289.1,0.38032098]
[1737798518393,6.12864047,3289.2,3289.1,0.38032098]
[1737798518994,5.64213047,3289.2,3289.1,0.38034083]
[1737798519295,5.74678269,3289.2,3289.1,0.38034083]
[1737798520206,6.12864084,3289.2,3289.1,0.38034083]
[1737798521794,10.12651108,3289.2,3289.1,0.38034083]
[1737798522095,9.68846491,3289.2,3288.5,0.4843]
[1737798522293,1.59507269,3288.6,3288.5,0.4843]
[1737798522490,1.10847269,3288.6,3288.2,0.5273]
[1737798522801,0.48665,3288.2,3288.1,4.77744202]
[1737798522997,1.43065,3288.2,3288.1,4.77744202]
[1737798523294,1.43065,3288.2,3287.9,1.69156222]
[1737798523295,2.48318575,3288.2,3287.9,1.69156222]
[1737798523499,2.70362538,3288.0,3287.9,0.78156211]
[1737798523697,2.26540159,3288.0,3287.7,9.55488404]
[1737798523891,4.80298269,3287.8,3287.7,9.55488404]
[1737798524097,4.8514389,3287.8,3287.7,9.55488404]
[1737798524291,6.19179575,3287.8,3287.7,9.55488404]
[1737798524497,6.19179575,3287.8,3287.7,8.94485538]
[1737798525399,6.19179575,3287.8,3287.7,3.57065538]
[1737798525594,10.06420721,3287.8,3287.7,2.77745538]
[1737798525794,11.30408566,3287.8,3287.7,2.77745538]
[1737798526298,0.48683,3287.0,3286.9,0.4796]
[1737798526503,1.43083,3287.0,3286.9,0.4796]
[1737798527406,5.40796667,3287.0,3286.9,0.4796]
[1737798527798,4.92113667,3287.0,3286.9,0.4796]
[1737798528301,3.97713667,3287.0,3286.9,0.4796]
[1737798529402,3.2078,3287.3,3287.2,0.4868]
[1737798529710,2.34835114,3287.7,3287.2,0.4868]
[1737798529711,3.2078,3287.7,3287.2,40.8]
[1737798530005,0.944,3288.1,3287.5,0.48675]
[1737798530208,0.944,3288.1,3287.2,40.8]
[1737798530209,0.48671,3287.9,3287.6,1.01254]
[1737798530406,0.48671,3287.9,3287.7,0.4783]
[1737798530716,0.48671,3287.8,3287.7,0.4783]
[1737798531301,0.48669,3288.0,3287.7,0.96502]
[1737798531508,1.43068,3288.1,3287.8,0.48671]
[1737798531808,0.944,3288.1,3287.7,0.96502]
[1737798532003,0.944,3288.1,3287.7,0.4783]
[1737798532311,0.48671,3287.8,3287.7,0.4783]
[1737798533412,0.48673,3287.7,3287.6,0.5258]
[1737798533910,6.39058775,3287.7,3287.3,0.5077]
[1737798534101,0.48677,3287.4,3287.3,0.5077]
[1737798536209,0.48677,3287.5,3287.3,0.5077]
[1737798536411,6.39058775,3287.7,3287.3,0.99449]
[1737798536704,4.04223661,3287.7,3287.5,0.48675]
[1737798537011,4.98623661,3287.7,3287.5,0.48675]
[1737798537411,4.04223661,3287.7,3287.5,0.48675]
[1737798538104,4.52896661,3287.7,3287.5,0.48675]
[1737798538309,4.04223661,3287.7,3287.5,0.48675]
[1737798538510,3.77904114,3288.0,3287.7,0.48672]
[1737798538707,3.29235114,3288.0,3287.8,0.9584]
[1737798538911,0.4867,3287.9,3287.8,0.9584]
[1737798539112,4.46597478,3287.9,3287.8,0.9584]
[1737798539416,3.97927478,3287.9,3287.1,3.2078]
[1737798539608,2.83513114,3287.4,3287.2,1.001]
[1737798539803,0.48679,3287.3,3287.2,1.001]
[1737798541513,2.34835114,3287.4,3287.2,1.001]
[1737798541711,2.83513114,3287.4,3287.2,1.001]
[1737798543114,0.48679,3287.3,3287.2,1.001]
[1737798543810,2.83513114,3287.4,3287.2,1.001]
[1737798544122,0.48679,3287.3,3287.2,1.001]
[1737798546913,4.50660299,3287.3,3287.2,0.5229]
[1737798547320,4.99250299,3287.3,3287.2,0.5229]
[1737798547518,4.50571299,3287.3,3287.0,0.4939]
[1737798547718,2.83517114,3287.1,3287.0,0.4939]
[1737798549111,2.83517114,3287.1,3287.0,0.98073]
[1737798549315,1.43081,3287.2,3287.0,0.98073]
[1737798550217,3.93867658,3287.1,3287.0,0.98073]
[1737798550418,3.93867658,3287.1,3287.0,1.3546532]
[1737798551028,1.43081,3287.2,3287.0,0.8678232]
[1737798551323,0.944,3287.2,3287.1,0.37428993]
[1737798551624,1.4308,3287.2,3287.1,0.37428993]
[1737798553829,0.944,3287.2,3287.1,0.86145214]
[1737798554027,1.4308,3287.2,3287.1,0.86145214]
[1737798555227,0.944,3287.2,3287.1,0.86145214]
[1737798555926,0.944,3287.2,3287.1,0.86146253]
[1737798556726,1.4308,3287.2,3287.1,0.37464253]
[1737798558031,1.4308,3287.2,3287.1,0.37468332]
[1737798561027,1.9071,3287.2,3287.1,0.37468332]
[1737798561335,2.4358,3287.2,3287.1,0.37468332]
[1737798561534,1.4918,3287.2,3287.1,0.37468332]
[1737798561728,1.0155,3287.2,3287.1,0.37468332]
[1737798562234,0.944,3287.3,3287.1,0.86149332]
[1737798562534,1.43079,3287.3,3287.2,0.37468332]
[1737798563335,5.33070798,3287.3,3287.2,0.37468332]
[1737798563730,4.84391798,3287.3,3286.9,0.5216]
[1737798564030,2.83517114,3287.1,3287.0,0.3748458]
[1737798564236,2.83517114,3287.1,3287.0,0.37484565]
[1737798564934,7.79428184,3287.1,3287.0,0.37484565]
[1737798566137,7.30746184,3287.1,3286.9,0.5216]
[1737798566338,7.79428184,3287.1,3287.0,0.37482816]
[1737798567939,7.30746184,3287.1,3286.9,0.5216]
[1737798568131,0.48683,3287.0,3286.9,0.5216]
[1737798568939,0.48683,3287.0,3286.9,1.49648838]
[1737798569440,0.944,3287.3,3286.9,1.49648838]
[1737798569636,0.4868,3287.2,3287.1,0.4868]
[1737798569836,0.4868,3287.2,3287.1,1.46168838]
[1737798570235,1.43079,3287.3,3287.2,0.4868]
[1737798570427,1.43079,3287.3,3287.2,0.86175707]
[1737798570632,0.944,3287.3,3287.2,0.37495707]
[1737798570834,1.43079,3287.3,3287.2,0.86175707]
[1737798571341,0.944,3287.3,3287.0,0.97413]
[1737798571533,1.00802,3287.2,3287.1,0.37512356]
[1737798571845,1.00802,3287.2,3287.1,0.86194356]
[1737798572138,0.48679,3287.3,3287.1,0.86193356]
[1737798572345,0.86933888,3287.3,3287.2,0.37512356]
[1737798572740,0.86933888,3287.3,3287.2,0.86192356]
[1737798573043,0.86933888,3287.3,3287.2,0.37512356]
[1737798573739,0.48679,3287.3,3287.2,0.37512356]
[1737798574343,4.40627807,3287.3,3287.2,0.37512356]
[1737798574741,4.78888409,3287.3,3287.2,0.37512356]
[1737798575337,4.30209409,3287.3,3287.2,0.37512356]
[1737798575642,0.38260602,3287.3,3287.2,1.46230484]
[1737798575837,5.55615114,3287.4,3287.3,0.48679]
[1737798576038,5.55615114,3287.4,3287.3,1.46229484]
[1737798576432,6.04292114,3287.4,3287.3,1.46229484]
[1737798576737,5.55615114,3287.4,3287.3,0.86198424]
[1737798577042,3.69457,3287.4,3287.3,1.46226091]
[1737798577237,3.2078,3287.4,3287.3,1.46226091]
[1737798579845,3.2078,3287.4,3287.3,1.46171387]
[1737798581139,0.48676,3287.5,3287.4,0.48677]
[1737798581340,0.48676,3287.5,3287.4,4.69902387]
[1737798581535,0.48676,3287.5,3287.4,0.37497072]
[1737798582047,4.48248622,3287.5,3287.4,0.37497072]
[1737798582437,4.98768622,3287.5,3287.4,0.37497072]
[1737798582635,4.50092622,3287.5,3287.1,0.5163]
[1737798582839,2.83514114,3287.3,3287.2,0.37488052]
[1737798583648,2.34835114,3287.3,3287.1,0.5163]
[1737798583850,2.83514114,3287.3,3287.2,0.37488756]
[1737798585756,0.48679,3287.3,3287.2,0.37488756]
[1737798587955,0.48679,3287.3,3287.2,0.37488596]
[1737798590049,0.48679,3287.3,3287.2,0.37488862]
[1737798591061,0.48513399,3287.3,3287.2,0.37488862]
[1737798592855,0.9976,3287.4,3287.2,0.37489038]
[1737798593060,1.48437,3287.4,3287.3,0.37489038]
[1737798593459,5.419142,3287.4,3287.3,0.37489038]
[1737798594562,5.419142,3287.4,3287.1,0.5163]
[1737798594563,4.932372,3287.4,3287.1,0.5163]
[1737798594764,0.48679,3287.3,3287.2,0.37490543]
[1737798594966,2.83514114,3287.3,3287.2,0.37490543]
[1737798595158,0.48685,3286.9,3286.8,0.9893]
[1737798595464,0.48685,3286.9,3286.8,1.96408932]
[1737798597157,1.47185,3286.9,3286.8,1.96408932]
[1737798597559,1.47185,3286.9,3286.8,1.46748932]
[1737798597765,1.96855,3286.9,3286.8,1.46748932]
[1737798600351,1.96855,3286.9,3286.8,1.46734519]
[1737798602363,1.96855,3286.9,3286.8,1.46720442]
[1737798602664,0.48685,3286.9,3286.8,1.46720442]
[1737798603465,0.48685,3286.9,3286.8,0.37480982]
[1737798604465,0.48685,3286.9,3286.8,0.37475553]
[1737798605172,4.41964809,3286.9,3286.8,0.37475553]
[1737798605573,0.48692,3286.4,3286.3,3.69473]
[1737798605774,0.48691,3286.5,3286.3,4.66901784]
[1737798605970,1.96662,3286.4,3286.3,3.2078]
[1737798606171,1.96662,3286.4,3286.3,3.582537]
[1737798606471,1.96662,3286.4,3286.3,3.58239177]
[1737798607272,5.92449988,3286.4,3286.3,3.2078]
[1737798607973,1.96662,3286.4,3286.3,3.2078]
[1737798608383,0.48698,3286.0,3285.9,3.2078]
[1737798608590,0.48698,3286.0,3285.9,4.18115888]
[1737798608790,0.48698,3286.0,3285.9,44.98115888]
[1737798609086,0.48698,3286.0,3285.9,4.18115888]
[1737798609491,0.48698,3286.0,3285.9,44.98115888]
[1737798610382,0.48698,3286.0,3285.9,44.3821688]
[1737798610685,0.48698,3286.0,3285.9,45.46796729]
[1737798610889,0.48698,3286.0,3285.9,44.98096729]
[1737798611089,0.48698,3286.0,3285.9,45.46796729]
[1737798611291,2.58562405,3286.8,3286.3,0.48693]
[1737798611486,4.15635781,3286.7,3285.9,44.0078]
[1737798611690,0.48691,3286.5,3286.4,0.48691]
[1737798611886,0.48691,3286.5,3286.4,0.86111468]
[1737798612187,4.15635781,3286.7,3286.4,0.37420468]
[1737798612383,0.4869,3286.6,3286.5,0.513]
[1737798612778,3.96080388,3286.6,3285.9,44.0078]
[1737798613090,0.48692,3286.4,3286.1,0.48695]
[1737798613292,0.48694,3286.3,3286.2,0.37421128]
[1737798613485,3.87655114,3286.5,3286.0,0.99998]
[1737798613789,3.87655114,3286.5,3286.1,0.37420299]
[1737798613790,0.48695,3286.2,3286.1,0.37420299]
[1737798614893,4.43429414,3286.2,3286.1,0.37420299]
[1737798617292,6.78264528,3286.2,3286.1,0.37420299]
[1737798617693,0.48698,3286.0,3285.9,3.2078]
[1737798617895,0.48698,3286.0,3285.9,3.58191253]
[1737798618597,0.48698,3286.0,3285.9,4.06891253]
[1737798618798,0.48698,3286.0,3285.9,3.58190144]
[1737798620900,0.48698,3286.0,3285.9,3.58189795]
[1737798621994,0.48698,3286.0,3285.9,0.37409795]
[1737798624295,4.43878853,3286.0,3285.9,0.37409795]
[1737798626591,4.43878853,3286.0,3285.9,0.37430349]
[1737798626898,4.43878853,3286.0,3285.9,0.37430353]
[1737798627098,4.43878853,3286.0,3285.9,0.37430333]
[1737798627995,1.5282,3286.5,3285.9,0.37430333]
[1737798627996,3.21235781,3286.7,3285.9,0.97321447]
[1737798628198,0.4869,3286.6,3286.5,0.48689]
[1737798628495,0.4869,3286.6,3286.5,0.861246]
[1737798628893,3.21235781,3286.7,3286.0,0.4783]
[1737798629096,0.48692,3286.5,3286.4,0.48692]
[1737798629795,0.48693,3286.4,3286.3,0.48693]
[1737798630098,0.48697,3286.1,3286.0,0.96527]
[1737798630296,0.48696,3286.2,3286.1,0.48695]
[1737798630498,0.48696,3286.2,3286.1,0.37442978]
[1737798630689,0.48696,3286.2,3286.1,0.97364905]
[1737798631504,0.48695,3286.3,3286.2,0.48695]
[1737798631697,0.48695,3286.3,3286.2,1.37797978]
[1737798632191,0.48695,3286.3,3286.2,1.4907498]
[1737798632404,0.48695,3286.3,3286.2,0.891273]
[1737798632697,0.48695,3286.3,3286.2,0.374673]
[1737798633203,0.48695,3286.3,3286.2,0.97436497]
[1737798633401,0.99565,3286.3,3286.2,0.374673]
[1737798633905,0.99565,3286.3,3286.2,1.46133285]
[1737798634101,0.48695,3286.3,3286.2,1.46133285]
[1737798634297,0.48695,3286.3,3286.2,1.46170365]
[1737798634599,0.48693,3286.4,3286.3,0.48693]
[1737798634802,0.48691,3286.5,3286.4,0.48691]
[1737798635003,0.48691,3286.5,3286.4,1.46165036]
[1737798635201,3.21235781,3286.7,3286.4,0.97474036]
[1737798635406,0.4869,3286.6,3286.5,0.86180525]
[1737798635705,0.4869,3286.6,3286.5,0.37490525]
[1737798635906,4.45748953,3286.6,3286.5,0.86181525]
[1737798636297,4.45748953,3286.6,3286.5,0.37498369]
[1737798637402,4.45748953,3286.6,3286.5,0.89348369]
[1737798638400,4.45748953,3286.6,3286.5,0.89342131]
[1737798640510,4.45748953,3286.6,3286.5,0.8933924]
[1737798640703,0.4869,3286.6,3286.5,0.8933924]
[1737798640902,0.4869,3286.6,3286.5,1.3803024]
[1737798641305,0.4869,3286.6,3286.5,1.98006737]
[1737798641603,0.4869,3286.6,3286.5,1.49315737]
[1737798641807,0.4869,3286.6,3286.5,0.8933924]
[1737798642199,0.4869,3286.6,3286.5,0.3748924]
[1737798642403,3.21235781,3286.7,3286.5,0.37486306]
[1737798642607,3.21235781,3286.7,3286.1,0.48696]
[1737798642807,0.48694,3286.3,3286.2,0.97464857]
[1737798643803,0.48694,3286.3,3286.2,0.37486483]
[1737798644000,4.40120694,3286.3,3286.2,0.37486483]
[1737798644616,3.91426694,3286.3,3285.9,0.5255]
[1737798644913,0.48697,3286.1,3286.0,0.37488322]
[1737798645606,4.35675568,3286.1,3286.0,0.37488322]
[1737798646508,4.35675568,3286.1,3286.0,0.37485799]
[1737798650715,4.35675568,3286.1,3286.0,0.37482245]
[1737798652812,4.35675568,3286.1,3286.0,0.37480352]
[1737798653020,4.84615568,3286.1,3286.0,0.37480352]
[1737798653415,4.84615568,3286.1,3285.9,1.032]
[1737798653617,4.84615568,3286.1,3286.0,0.37479969]
[1737798657012,4.35918568,3286.1,3286.0,0.37477502]
[1737798657314,4.35918568,3286.1,3285.0,3.34305002]